[Event "Betsys MČR v online bleskovém šachu 2021"]
[Site "Chess.com"]
[Date "2021.04.17"]
[Round "1"]
[White "Sandokanom"]
[Black "Diamantidis_13"]
[Result "0-1"]
[WhiteElo "1771"]
[BlackElo "2440"]
[TimeControl "180+1"]
[EndTime "9:06:33 PDT"]
[Termination "Uživatel Diamantidis_13 zvítězil po vzdání soupeře"]

1. d4 {[%clk 0:03:00.9]} 1... Nf6 {[%clk 0:02:59.6]} 2. Nc3 {[%clk 0:03:00.9]}
2... d5 {[%clk 0:02:54.7]} 3. Nf3 {[%clk 0:03:00.2]} 3... a6 {[%clk 0:02:50.1]}
4. a3 {[%clk 0:03:00]} 4... g6 {[%clk 0:02:45.7]} 5. e3 {[%clk 0:02:59.9]} 5...
Bg7 {[%clk 0:02:45.8]} 6. Bd3 {[%clk 0:02:59.8]} 6... O-O {[%clk 0:02:45.4]} 7.
O-O {[%clk 0:03:00.4]} 7... c5 {[%clk 0:02:37.9]} 8. dxc5 {[%clk 0:02:58.4]}
8... Nbd7 {[%clk 0:02:37.6]} 9. e4 {[%clk 0:02:42.7]} 9... dxe4 {[%clk
0:02:21.3]} 10. Nxe4 {[%clk 0:02:42.2]} 10... Nxe4 {[%clk 0:02:21.5]} 11. Bxe4
{[%clk 0:02:42.4]} 11... Nxc5 {[%clk 0:02:22.2]} 12. Bd3 {[%clk 0:02:31.7]}
12... Nxd3 {[%clk 0:02:21.5]} 13. Qxd3 {[%clk 0:02:24.5]} 13... Qxd3 {[%clk
0:02:20.9]} 14. cxd3 {[%clk 0:02:25.4]} 14... Bf5 {[%clk 0:02:20.3]} 15. d4
{[%clk 0:02:17.2]} 15... Be4 {[%clk 0:02:20.5]} 16. Be3 {[%clk 0:02:10.1]} 16...
Rfd8 {[%clk 0:02:18.7]} 17. Rfd1 {[%clk 0:02:06.8]} 17... Bxf3 {[%clk 0:02:17]}
18. gxf3 {[%clk 0:02:06.9]} 18... Rd7 {[%clk 0:02:11.2]} 19. Rac1 {[%clk
0:02:04.4]} 19... Rad8 {[%clk 0:02:10.9]} 20. Re1 {[%clk 0:01:52.6]} 20... e6
{[%clk 0:02:09.5]} 21. b4 {[%clk 0:01:20.2]} 21... Bxd4 {[%clk 0:02:04.4]} 22.
Bxd4 {[%clk 0:01:17]} 22... Rxd4 {[%clk 0:02:05.3]} 23. Rc7 {[%clk 0:01:16.8]}
23... R8d7 {[%clk 0:02:02]} 24. Rec1 {[%clk 0:01:15.5]} 24... Kf8 {[%clk
0:01:54.6]} 25. Rc8+ {[%clk 0:01:11.5]} 25... Ke7 {[%clk 0:01:54.3]} 26. R1c3
{[%clk 0:01:01.4]} 26... Kf6 {[%clk 0:01:47.5]} 27. Kg2 {[%clk 0:00:57.2]} 27...
Rd3 {[%clk 0:01:44.9]} 28. h3 {[%clk 0:00:46.8]} 28... h5 {[%clk 0:01:44.2]} 29.
a4 {[%clk 0:00:41.1]} 29... Rxc3 {[%clk 0:01:40.9]} 30. Rxc3 {[%clk 0:00:40.3]}
30... Rd4 {[%clk 0:01:41.8]} 31. Rb3 {[%clk 0:00:37.5]} 31... Kf5 {[%clk
0:01:36.8]} 32. a5 {[%clk 0:00:32.1]} 32... e5 {[%clk 0:01:33.7]} 33. b5 {[%clk
0:00:31.2]} 33... Rd5 {[%clk 0:01:31]} 34. bxa6 {[%clk 0:00:27.3]} 34... bxa6
{[%clk 0:01:31.9]} 35. Rb7 {[%clk 0:00:25.4]} 35... f6 {[%clk 0:01:29.8]} 36.
Kg3 {[%clk 0:00:20.5]} 36... Rxa5 {[%clk 0:01:29]} 37. h4 {[%clk 0:00:18.3]}
37... Ra1 {[%clk 0:01:27.5]} 0-1

[Event "Betsys MČR v online bleskovém šachu 2021"]
[Site "Chess.com"]
[Date "2021.04.17"]
[Round "1"]
[White "Kamilotka"]
[Black "YoungMegaMind"]
[Result "0-1"]
[WhiteElo "1641"]
[BlackElo "2275"]
[TimeControl "180+1"]
[EndTime "9:06:36 PDT"]
[Termination "Uživatel YoungMegaMind zvítězil po vzdání soupeře"]

1. e4 {[%clk 0:02:59.6]} 1... d6 {[%clk 0:02:58.7]} 2. d4 {[%clk 0:02:59.2]}
2... Nf6 {[%clk 0:02:58.6]} 3. Nc3 {[%clk 0:02:58.5]} 3... Nbd7 {[%clk
0:02:57.8]} 4. Nf3 {[%clk 0:02:58.3]} 4... e5 {[%clk 0:02:58.4]} 5. d5 {[%clk
0:02:57.9]} 5... g6 {[%clk 0:02:56.9]} 6. Bd3 {[%clk 0:02:57.4]} 6... Bg7 {[%clk
0:02:57.1]} 7. Bg5 {[%clk 0:02:57.1]} 7... O-O {[%clk 0:02:55.8]} 8. Qd2 {[%clk
0:02:56.5]} 8... Nc5 {[%clk 0:02:54.7]} 9. Bh6 {[%clk 0:02:53.8]} 9... Bg4
{[%clk 0:02:50.6]} 10. h3 {[%clk 0:02:50.4]} 10... Bxf3 {[%clk 0:02:45.2]} 11.
gxf3 {[%clk 0:02:50.1]} 11... Nh5 {[%clk 0:02:43.8]} 12. Bxg7 {[%clk 0:02:47.6]}
12... Kxg7 {[%clk 0:02:44.7]} 13. O-O-O {[%clk 0:02:42.9]} 13... Qh4 {[%clk
0:02:43.2]} 14. Rdg1 {[%clk 0:02:26.7]} 14... Qf4 {[%clk 0:02:38.3]} 15. Qxf4
{[%clk 0:02:03.2]} 15... Nxf4 {[%clk 0:02:39.2]} 16. Kd2 {[%clk 0:01:51]} 16...
a5 {[%clk 0:02:33]} 17. a3 {[%clk 0:01:50.2]} 17... c6 {[%clk 0:02:24.6]} 18.
dxc6 {[%clk 0:01:42]} 18... bxc6 {[%clk 0:02:25.5]} 19. Ne2 {[%clk 0:01:41.9]}
19... Ncxd3 {[%clk 0:02:21.4]} 20. cxd3 {[%clk 0:01:39.8]} 20... Nxe2 {[%clk
0:02:20.5]} 21. Kxe2 {[%clk 0:01:39.5]} 21... Rfb8 {[%clk 0:02:19.8]} 22. Rb1
{[%clk 0:01:39.2]} 22... Rb3 {[%clk 0:02:19.5]} 23. Rhc1 {[%clk 0:01:35.5]}
23... c5 {[%clk 0:02:18.4]} 24. Rc3 {[%clk 0:01:33]} 24... Rab8 {[%clk
0:02:13.3]} 25. Rxb3 {[%clk 0:01:32.5]} 25... Rxb3 {[%clk 0:02:14.2]} 26. Kd2
{[%clk 0:01:32.7]} 26... a4 {[%clk 0:02:13.4]} 27. Kc2 {[%clk 0:01:25.8]} 27...
Kf6 {[%clk 0:02:12.7]} 28. Rg1 {[%clk 0:01:24.5]} 28... Ke6 {[%clk 0:02:11]} 29.
Rg4 {[%clk 0:01:23.6]} 29... c4 {[%clk 0:02:08.8]} 30. dxc4 {[%clk 0:01:00.9]}
30... Rxf3 {[%clk 0:02:08.3]} 31. Rg3 {[%clk 0:01:00.2]} 31... Rxf2+ {[%clk
0:02:01.8]} 32. Kc3 {[%clk 0:00:59.9]} 32... f5 {[%clk 0:01:58.8]} 33. exf5+
{[%clk 0:00:57.8]} 33... gxf5 {[%clk 0:01:55.6]} 34. Rg7 {[%clk 0:00:55.6]}
34... Rf3+ {[%clk 0:01:42.5]} 35. Kb4 {[%clk 0:00:54.6]} 35... Rxh3 {[%clk
0:01:42.6]} 36. Kxa4 {[%clk 0:00:53.6]} 36... f4 {[%clk 0:01:43]} 37. Rg1 {[%clk
0:00:52]} 37... f3 {[%clk 0:01:42.4]} 38. Rf1 {[%clk 0:00:52]} 38... e4 {[%clk
0:01:42.5]} 39. b4 {[%clk 0:00:48.1]} 39... e3 {[%clk 0:01:42.6]} 40. b5 {[%clk
0:00:45.9]} 40... e2 {[%clk 0:01:38.8]} 41. Rb1 {[%clk 0:00:44.3]} 41... f2
{[%clk 0:01:37.8]} 42. b6 {[%clk 0:00:44.2]} 42... e1=Q {[%clk 0:01:36]} 43.
Rxe1+ {[%clk 0:00:39.8]} 43... fxe1=Q {[%clk 0:01:35.6]} 44. b7 {[%clk
0:00:40.7]} 44... Qd1+ {[%clk 0:01:32.1]} 45. Kb5 {[%clk 0:00:39.9]} 45... Rb3+
{[%clk 0:01:30.4]} 46. Kc6 {[%clk 0:00:39.8]} 46... Qf3+ {[%clk 0:01:30.1]} 47.
Kc7 {[%clk 0:00:39.2]} 0-1

[Event "Betsys MČR v online bleskovém šachu 2021"]
[Site "Chess.com"]
[Date "2021.04.17"]
[Round "1"]
[White "Svisthorsky"]
[Black "Gicko13"]
[Result "0-1"]
[WhiteElo "1473"]
[BlackElo "2124"]
[TimeControl "180+1"]
[EndTime "9:06:36 PDT"]
[Termination "Uživatel Gicko13 zvítězil po vzdání soupeře"]

1. d4 {[%clk 0:02:58.3]} 1... d5 {[%clk 0:02:59.9]} 2. c4 {[%clk 0:02:58.4]}
2... e6 {[%clk 0:03:00.2]} 3. e3 {[%clk 0:02:58.4]} 3... Nf6 {[%clk 0:02:58.2]}
4. Nc3 {[%clk 0:02:58.5]} 4... c6 {[%clk 0:02:56.8]} 5. Bd2 {[%clk 0:02:58.5]}
5... Bd6 {[%clk 0:02:55.3]} 6. cxd5 {[%clk 0:02:58.6]} 6... exd5 {[%clk
0:02:54.7]} 7. Bd3 {[%clk 0:02:58.4]} 7... Qe7 {[%clk 0:02:51]} 8. h3 {[%clk
0:02:57.3]} 8... O-O {[%clk 0:02:50.3]} 9. Nf3 {[%clk 0:02:57.2]} 9... Nbd7
{[%clk 0:02:41.2]} 10. O-O {[%clk 0:02:56.8]} 10... Ne4 {[%clk 0:02:40.9]} 11.
Re1 {[%clk 0:02:35.2]} 11... Ndf6 {[%clk 0:02:32.6]} 12. Re2 {[%clk 0:02:21.8]}
12... Bf5 {[%clk 0:02:22.3]} 13. Nh4 {[%clk 0:02:17]} 13... Bd7 {[%clk
0:02:04.3]} 14. f3 {[%clk 0:02:14.8]} 14... Nxd2 {[%clk 0:01:26.2]} 15. Qxd2
{[%clk 0:02:12.5]} 15... Rfe8 {[%clk 0:01:14.8]} 16. Rae1 {[%clk 0:01:54.4]}
16... Bg3 {[%clk 0:01:11.6]} 17. Nf5 {[%clk 0:01:49.1]} 17... Bxf5 {[%clk
0:01:04.7]} 18. Bxf5 {[%clk 0:01:48]} 18... Bxe1 {[%clk 0:01:04.9]} 19. Qxe1
{[%clk 0:01:48.6]} 19... g6 {[%clk 0:01:02.1]} 20. Bd3 {[%clk 0:01:43.3]} 20...
Qd6 {[%clk 0:00:58.8]} 21. Qh4 {[%clk 0:01:37.7]} 21... Re6 {[%clk 0:00:44.6]}
22. Na4 {[%clk 0:01:33]} 22... b6 {[%clk 0:00:40.4]} 23. Nc3 {[%clk 0:01:32.1]}
23... Rae8 {[%clk 0:00:39.5]} 24. e4 {[%clk 0:01:07.1]} 24... dxe4 {[%clk
0:00:34.4]} 25. fxe4 {[%clk 0:01:07]} 25... Qxd4+ {[%clk 0:00:27.9]} 26. Kh1
{[%clk 0:00:53.6]} 26... Qxd3 {[%clk 0:00:27.2]} 0-1

[Event "Betsys MČR v online bleskovém šachu 2021"]
[Site "Chess.com"]
[Date "2021.04.17"]
[Round "1"]
[White "Rozmetal"]
[Black "MatejKopecky13"]
[Result "1-0"]
[WhiteElo "2120"]
[BlackElo "1467"]
[TimeControl "180+1"]
[EndTime "9:06:36 PDT"]
[Termination "Uživatel Rozmetal zvítězil matem"]

1. e4 {[%clk 0:02:52.3]} 1... c6 {[%clk 0:02:58.1]} 2. d4 {[%clk 0:02:49.5]}
2... d5 {[%clk 0:02:58.4]} 3. e5 {[%clk 0:02:48.3]} 3... e6 {[%clk 0:02:56.1]}
4. Qg4 {[%clk 0:02:40.4]} 4... Ne7 {[%clk 0:02:50.6]} 5. Nf3 {[%clk 0:02:38.1]}
5... Ng6 {[%clk 0:02:49.1]} 6. h4 {[%clk 0:02:36.9]} 6... h5 {[%clk 0:02:47.8]}
7. Qg3 {[%clk 0:02:35.9]} 7... Nd7 {[%clk 0:02:33.9]} 8. Bd3 {[%clk 0:02:33.8]}
8... Ne7 {[%clk 0:02:33.2]} 9. Nc3 {[%clk 0:02:22.8]} 9... c5 {[%clk 0:02:24.7]}
10. Nb5 {[%clk 0:02:21.9]} 10... Nc6 {[%clk 0:02:19.5]} 11. Bg5 {[%clk
0:02:19.4]} 11... Qa5+ {[%clk 0:02:17.2]} 12. c3 {[%clk 0:02:12.3]} 12... c4
{[%clk 0:02:15.5]} 13. Bc2 {[%clk 0:02:04.8]} 13... Qxb5 {[%clk 0:02:08.5]} 14.
O-O-O {[%clk 0:02:04.2]} 14... Qa5 {[%clk 0:01:55.7]} 15. a3 {[%clk 0:02:01.5]}
15... Be7 {[%clk 0:01:13.7]} 16. Bxe7 {[%clk 0:01:56.4]} 16... Nxe7 {[%clk
0:01:14.6]} 17. Qxg7 {[%clk 0:01:55.5]} 17... Rf8 {[%clk 0:01:13]} 18. Ng5
{[%clk 0:01:51.6]} 18... Nf5 {[%clk 0:01:09.8]} 19. Bxf5 {[%clk 0:01:50.1]}
19... exf5 {[%clk 0:01:10.2]} 20. Nh7 {[%clk 0:01:31.1]} 20... b6 {[%clk
0:01:01.2]} 21. Rde1 {[%clk 0:01:23.9]} 21... Bb7 {[%clk 0:00:38.7]} 22. e6
{[%clk 0:01:20.1]} 22... O-O-O {[%clk 0:00:33.4]} 23. exd7+ {[%clk 0:01:19.8]}
23... Kb8 {[%clk 0:00:30.4]} 24. Nxf8 {[%clk 0:01:17.9]} 24... Qb5 {[%clk
0:00:30.8]} 25. Qxf7 {[%clk 0:01:13.5]} 25... Bc6 {[%clk 0:00:23.4]} 26. Re7
{[%clk 0:01:08.6]} 26... Qb3 {[%clk 0:00:14.8]} 27. Re8 {[%clk 0:01:07]} 27...
Kc7 {[%clk 0:00:15.1]} 28. Rxd8 {[%clk 0:01:06.2]} 28... Kxd8 {[%clk 0:00:16]}
29. Ne6# {[%clk 0:01:04.7]} 1-0

[Event "Betsys MČR v online bleskovém šachu 2021"]
[Site "Chess.com"]
[Date "2021.04.17"]
[Round "1"]
[White "Millbo64"]
[Black "Devasales"]
[Result "1-0"]
[WhiteElo "1997"]
[BlackElo "1193"]
[TimeControl "180+1"]
[EndTime "9:06:38 PDT"]
[Termination "Uživatel Millbo64 zvítězil na čas"]

1. e4 {[%clk 0:03:00.9]} 1... c5 {[%clk 0:02:59.1]} 2. Nc3 {[%clk 0:02:58.1]}
2... Nc6 {[%clk 0:02:56.5]} 3. Bb5 {[%clk 0:02:57.6]} 3... g6 {[%clk 0:02:53.2]}
4. Bxc6 {[%clk 0:02:57.1]} 4... bxc6 {[%clk 0:02:52.8]} 5. f4 {[%clk 0:02:56.2]}
5... Bg7 {[%clk 0:02:52.3]} 6. Nf3 {[%clk 0:02:54.6]} 6... d6 {[%clk 0:02:51.6]}
7. d3 {[%clk 0:02:54.7]} 7... Nf6 {[%clk 0:02:44.4]} 8. O-O {[%clk 0:02:54.3]}
8... O-O {[%clk 0:02:43.1]} 9. Qe1 {[%clk 0:02:54.4]} 9... e6 {[%clk 0:02:37.1]}
10. Rb1 {[%clk 0:02:53.1]} 10... a6 {[%clk 0:02:25.8]} 11. b3 {[%clk 0:02:51]}
11... d5 {[%clk 0:02:16.9]} 12. e5 {[%clk 0:02:50.6]} 12... Nd7 {[%clk
0:02:15.2]} 13. Na4 {[%clk 0:02:50.2]} 13... f5 {[%clk 0:02:06]} 14. c4 {[%clk
0:02:49.6]} 14... Rb8 {[%clk 0:01:52.2]} 15. Bd2 {[%clk 0:02:48.2]} 15... Qe7
{[%clk 0:01:40.6]} 16. Ba5 {[%clk 0:02:42.4]} 16... Kh8 {[%clk 0:01:23]} 17. Bc7
{[%clk 0:02:41.2]} 17... Rb7 {[%clk 0:01:18.7]} 18. Bd6 {[%clk 0:02:41.1]} 18...
Qf7 {[%clk 0:01:18]} 19. Ng5 {[%clk 0:02:38.7]} 19... Qg8 {[%clk 0:01:15.9]} 20.
Bxf8 {[%clk 0:02:15.5]} 20... Nxf8 {[%clk 0:01:14.4]} 21. Nxc5 {[%clk
0:02:11.3]} 21... Rb8 {[%clk 0:01:12.8]} 22. Na4 {[%clk 0:02:09.6]} 22... h6
{[%clk 0:01:12]} 23. Nf3 {[%clk 0:02:07]} 23... Nd7 {[%clk 0:01:11]} 24. d4
{[%clk 0:02:05.9]} 24... Bf8 {[%clk 0:01:03.9]} 25. c5 {[%clk 0:02:05.9]} 25...
Be7 {[%clk 0:00:56.7]} 26. Kh1 {[%clk 0:02:02.9]} 26... Qf7 {[%clk 0:00:54.2]}
27. g3 {[%clk 0:02:02.6]} 27... Nf8 {[%clk 0:00:46]} 28. Qe3 {[%clk 0:02:02.6]}
28... Nh7 {[%clk 0:00:43.2]} 29. Rg1 {[%clk 0:02:00.7]} 29... h5 {[%clk
0:00:42.4]} 30. h3 {[%clk 0:02:00.1]} 30... Bd7 {[%clk 0:00:34.4]} 31. Nb6
{[%clk 0:01:58.4]} 31... Rb7 {[%clk 0:00:33.7]} 32. a4 {[%clk 0:01:57.3]} 32...
Be8 {[%clk 0:00:28.3]} 33. a5 {[%clk 0:01:57.2]} 33... Bd8 {[%clk 0:00:26.4]}
34. b4 {[%clk 0:01:56]} 34... Qg7 {[%clk 0:00:19.5]} 35. Rb2 {[%clk 0:01:52.4]}
35... Rf7 {[%clk 0:00:08.7]} 36. g4 {[%clk 0:01:52]} 36... fxg4 {[%clk
0:00:05.9]} 37. hxg4 {[%clk 0:01:52.1]} 37... h4 {[%clk 0:00:05.1]} 38. Nxh4
{[%clk 0:01:43.9]} 38... Bxh4 {[%clk 0:00:02.5]} 39. g5 {[%clk 0:01:41.4]} 1-0

[Event "Betsys MČR v online bleskovém šachu 2021"]
[Site "Chess.com"]
[Date "2021.04.17"]
[Round "1"]
[White "pkozubik"]
[Black "kubaches123"]
[Result "0-1"]
[WhiteElo "1128"]
[BlackElo "1981"]
[TimeControl "180+1"]
[EndTime "9:06:38 PDT"]
[Termination "Uživatel kubaches123 zvítězil po vzdání soupeře"]

1. e4 {[%clk 0:03:00.9]} 1... c5 {[%clk 0:02:56.8]} 2. Nf3 {[%clk 0:03:01]} 2...
d6 {[%clk 0:02:56.3]} 3. d4 {[%clk 0:03:00.8]} 3... cxd4 {[%clk 0:02:57.2]} 4.
Nxd4 {[%clk 0:03:00.6]} 4... Nf6 {[%clk 0:02:51.2]} 5. Nc3 {[%clk 0:02:59.2]}
5... Nc6 {[%clk 0:02:50.5]} 6. Be3 {[%clk 0:02:54.8]} 6... Ng4 {[%clk
0:02:43.4]} 7. h3 {[%clk 0:02:37.5]} 7... Nxe3 {[%clk 0:02:41.6]} 8. fxe3 {[%clk
0:02:37.4]} 8... g6 {[%clk 0:02:36.9]} 9. Bb5 {[%clk 0:02:32.6]} 9... Bd7 {[%clk
0:02:36]} 10. O-O {[%clk 0:02:29]} 10... Bg7 {[%clk 0:02:34.1]} 11. Bd3 {[%clk
0:02:20.5]} 11... Nxd4 {[%clk 0:02:25.1]} 12. exd4 {[%clk 0:02:19.2]} 12...
Bxd4+ {[%clk 0:02:26]} 13. Kh1 {[%clk 0:02:18.3]} 13... O-O {[%clk 0:02:17.6]}
14. Qf3 {[%clk 0:02:16.7]} 14... Bxc3 {[%clk 0:01:45.1]} 15. bxc3 {[%clk
0:02:14]} 15... Rc8 {[%clk 0:01:44.4]} 16. c4 {[%clk 0:02:12.6]} 16... Be6
{[%clk 0:01:41.8]} 17. Rab1 {[%clk 0:01:55.7]} 17... b6 {[%clk 0:01:25.8]} 18.
Rb4 {[%clk 0:01:50.6]} 18... Qc7 {[%clk 0:01:23.4]} 19. h4 {[%clk 0:01:45.6]}
19... Qc5 {[%clk 0:01:22.7]} 20. a3 {[%clk 0:01:42]} 20... Qe5 {[%clk
0:01:19.9]} 21. g4 {[%clk 0:01:31.9]} 21... Rc5 {[%clk 0:01:19.3]} 22. h5 {[%clk
0:01:18.5]} 22... gxh5 {[%clk 0:01:11.9]} 23. gxh5 {[%clk 0:01:15.5]} 23...
Qxh5+ {[%clk 0:01:12.8]} 24. Qxh5 {[%clk 0:01:14.2]} 24... Rxh5+ {[%clk
0:01:13.7]} 25. Kg2 {[%clk 0:01:11.9]} 25... Bh3+ {[%clk 0:01:11.9]} 26. Kg3
{[%clk 0:01:10.4]} 26... Bxf1 {[%clk 0:01:12.8]} 27. Bxf1 {[%clk 0:01:08.4]}
27... Rg5+ {[%clk 0:01:08.8]} 28. Kf4 {[%clk 0:01:07.8]} 28... h6 {[%clk
0:01:09.3]} 29. Be2 {[%clk 0:00:59.1]} 29... e5+ {[%clk 0:01:01.1]} 30. Kf3
{[%clk 0:00:58.5]} 30... f5 {[%clk 0:01:01.5]} 31. Ke3 {[%clk 0:00:54.8]} 31...
f4+ {[%clk 0:01:00.8]} 32. Kd3 {[%clk 0:00:48.1]} 32... f3 {[%clk 0:01:00.5]}
33. Bf1 {[%clk 0:00:46.4]} 33... Rg1 {[%clk 0:01:00.7]} 34. Bh3 {[%clk 0:00:43]}
34... f2 {[%clk 0:01:00.7]} 35. Be6+ {[%clk 0:00:41.5]} 35... Kg7 {[%clk
0:00:59.8]} 36. Bh3 {[%clk 0:00:40.1]} 36... Rf3+ {[%clk 0:00:58.9]} 0-1

[Event "Betsys MČR v online bleskovém šachu 2021"]
[Site "Chess.com"]
[Date "2021.04.17"]
[Round "1"]
[White "youhy"]
[Black "avsokol"]
[Result "0-1"]
[WhiteElo "1764"]
[BlackElo "2400"]
[TimeControl "180+1"]
[EndTime "9:06:41 PDT"]
[Termination "Uživatel avsokol zvítězil matem"]

1. e4 {[%clk 0:02:59.4]} 1... c5 {[%clk 0:02:59.6]} 2. Nf3 {[%clk 0:02:59]} 2...
d6 {[%clk 0:02:59.6]} 3. d4 {[%clk 0:02:58.6]} 3... cxd4 {[%clk 0:03:00.5]} 4.
Nxd4 {[%clk 0:02:58.3]} 4... Nf6 {[%clk 0:03:00.8]} 5. Nc3 {[%clk 0:02:58.1]}
5... g6 {[%clk 0:03:01.1]} 6. Be3 {[%clk 0:02:54.7]} 6... Bg7 {[%clk 0:03:01.1]}
7. f3 {[%clk 0:02:53.6]} 7... O-O {[%clk 0:03:01.7]} 8. Qd2 {[%clk 0:02:49.9]}
8... Nc6 {[%clk 0:03:02.1]} 9. O-O-O {[%clk 0:02:48.8]} 9... d5 {[%clk
0:03:01.6]} 10. Qe1 {[%clk 0:02:45.5]} 10... e5 {[%clk 0:02:55.1]} 11. Nxc6
{[%clk 0:02:25.4]} 11... bxc6 {[%clk 0:02:55.3]} 12. exd5 {[%clk 0:01:31.9]}
12... Nxd5 {[%clk 0:02:53.4]} 13. Bc5 {[%clk 0:01:22.4]} 13... Re8 {[%clk
0:02:45.1]} 14. Kb1 {[%clk 0:00:24.2]} 14... Rb8 {[%clk 0:02:14.3]} 15. Nxd5
{[%clk 0:00:20.1]} 15... cxd5 {[%clk 0:02:12.8]} 16. c3 {[%clk 0:00:13.9]} 16...
Be6 {[%clk 0:01:43.6]} 17. Bd3 {[%clk 0:00:10.3]} 17... Qc7 {[%clk 0:01:39.4]}
18. Bf2 {[%clk 0:00:06.1]} 18... e4 {[%clk 0:01:03.6]} 19. fxe4 {[%clk
0:00:04.5]} 19... Bxc3 {[%clk 0:01:01]} 20. Qe2 {[%clk 0:00:03]} 20... Rxb2+
{[%clk 0:00:59.1]} 21. Qxb2 {[%clk 0:00:03]} 21... Bxb2 {[%clk 0:00:59.4]} 22.
Kxb2 {[%clk 0:00:03.9]} 22... Rb8+ {[%clk 0:00:58.5]} 23. Ka1 {[%clk 0:00:03.8]}
23... Qc3# {[%clk 0:00:58.3]} 0-1

[Event "Betsys MČR v online bleskovém šachu 2021"]
[Site "Chess.com"]
[Date "2021.04.17"]
[Round "1"]
[White "AdaTra"]
[Black "Nimrod64"]
[Result "0-1"]
[WhiteElo "1657"]
[BlackElo "2287"]
[TimeControl "180+1"]
[EndTime "9:06:41 PDT"]
[Termination "Uživatel Nimrod64 zvítězil po vzdání soupeře"]

1. d4 {[%clk 0:03:00.9]} 1... d5 {[%clk 0:02:55.9]} 2. Bf4 {[%clk 0:02:59.9]}
2... c5 {[%clk 0:02:54.1]} 3. c3 {[%clk 0:02:55.3]} 3... Nc6 {[%clk 0:02:53.2]}
4. e3 {[%clk 0:02:54.6]} 4... Nf6 {[%clk 0:02:51.9]} 5. Nd2 {[%clk 0:02:52.9]}
5... Qb6 {[%clk 0:02:51.2]} 6. Qb3 {[%clk 0:02:36.5]} 6... c4 {[%clk 0:02:49.9]}
7. Qc2 {[%clk 0:02:36.1]} 7... g6 {[%clk 0:02:48.3]} 8. e4 {[%clk 0:02:24.7]}
8... e6 {[%clk 0:02:47.5]} 9. Rb1 {[%clk 0:02:11.6]} 9... Bg7 {[%clk 0:02:42.5]}
10. Ngf3 {[%clk 0:02:10.6]} 10... O-O {[%clk 0:02:33.4]} 11. Be2 {[%clk
0:02:07.2]} 11... Qd8 {[%clk 0:02:28.8]} 12. e5 {[%clk 0:02:05.5]} 12... Nd7
{[%clk 0:02:26.7]} 13. h4 {[%clk 0:02:01.8]} 13... f6 {[%clk 0:02:21.9]} 14.
exf6 {[%clk 0:01:56.6]} 14... Nxf6 {[%clk 0:02:22.8]} 15. Bg5 {[%clk 0:01:51.8]}
15... Qe8 {[%clk 0:02:16.7]} 16. Ne5 {[%clk 0:01:44.2]} 16... Nxe5 {[%clk
0:02:06.5]} 17. dxe5 {[%clk 0:01:45.1]} 17... Nd7 {[%clk 0:02:05.6]} 18. f4
{[%clk 0:01:35.6]} 18... h6 {[%clk 0:02:03.1]} 19. h5 {[%clk 0:01:34.7]} 19...
hxg5 {[%clk 0:01:57.5]} 20. hxg6 {[%clk 0:01:34.1]} 20... Rxf4 {[%clk
0:01:56.5]} 21. Nf3 {[%clk 0:01:27.3]} 21... g4 {[%clk 0:01:39.7]} 22. Ng5
{[%clk 0:01:21.9]} 22... Nxe5 {[%clk 0:01:38.1]} 23. g3 {[%clk 0:01:03.4]} 23...
Rf5 {[%clk 0:01:32.6]} 24. Kd2 {[%clk 0:00:48.9]} 24... Rxg5 {[%clk 0:01:26.9]}
25. Rh7 {[%clk 0:00:38.5]} 25... Qxg6 {[%clk 0:01:24.7]} 26. Rbh1 {[%clk
0:00:31.3]} 26... Qxc2+ {[%clk 0:01:22.4]} 27. Kxc2 {[%clk 0:00:32.2]} 27... Bd7
{[%clk 0:01:18.6]} 28. R1h5 {[%clk 0:00:22]} 28... Rxh5 {[%clk 0:01:15.9]} 29.
Rxh5 {[%clk 0:00:22.7]} 29... Be8 {[%clk 0:01:15.4]} 30. Rg5 {[%clk 0:00:21.5]}
30... Kh7 {[%clk 0:01:10.7]} 31. Bxg4 {[%clk 0:00:19.3]} 31... Kh6 {[%clk
0:01:09.3]} 32. Rh5+ {[%clk 0:00:17]} 0-1

[Event "Betsys MČR v online bleskovém šachu 2021"]
[Site "Chess.com"]
[Date "2021.04.17"]
[Round "1"]
[White "DrDANDog"]
[Black "RadosC"]
[Result "0-1"]
[WhiteElo "1787"]
[BlackElo "2523"]
[TimeControl "180+1"]
[EndTime "9:06:43 PDT"]
[Termination "Uživatel RadosC zvítězil matem"]

1. e4 {[%clk 0:03:00.9]} 1... c5 {[%clk 0:02:59.9]} 2. Nf3 {[%clk 0:03:01.1]}
2... Nc6 {[%clk 0:03:00]} 3. Bb5 {[%clk 0:03:01.8]} 3... g6 {[%clk 0:02:59.6]}
4. O-O {[%clk 0:03:01.5]} 4... Bg7 {[%clk 0:02:59.6]} 5. c3 {[%clk 0:03:01.4]}
5... e5 {[%clk 0:02:57.1]} 6. Na3 {[%clk 0:02:58.8]} 6... Nge7 {[%clk
0:02:56.2]} 7. Nc4 {[%clk 0:02:57.9]} 7... d6 {[%clk 0:02:50.5]} 8. d4 {[%clk
0:02:55.4]} 8... O-O {[%clk 0:02:45.8]} 9. dxc5 {[%clk 0:02:50.1]} 9... dxc5
{[%clk 0:02:44.5]} 10. Qxd8 {[%clk 0:02:50]} 10... Rxd8 {[%clk 0:02:44.3]} 11.
Bg5 {[%clk 0:02:50.7]} 11... f6 {[%clk 0:02:43]} 12. Be3 {[%clk 0:02:49.7]}
12... b6 {[%clk 0:02:42.1]} 13. Rad1 {[%clk 0:02:48.5]} 13... Be6 {[%clk
0:02:41.9]} 14. Nd6 {[%clk 0:02:44]} 14... a6 {[%clk 0:02:34.2]} 15. Bc4 {[%clk
0:02:41.1]} 15... Rxd6 {[%clk 0:02:31.7]} 16. Rxd6 {[%clk 0:02:33.4]} 16... Bxc4
{[%clk 0:02:31.4]} 17. Ra1 {[%clk 0:02:23.8]} 17... Kf7 {[%clk 0:02:23.8]} 18.
b3 {[%clk 0:02:21.7]} 18... Be6 {[%clk 0:02:22.4]} 19. Rb1 {[%clk 0:02:14.4]}
19... a5 {[%clk 0:02:19.8]} 20. Ne1 {[%clk 0:02:07.1]} 20... Bf8 {[%clk
0:02:05.3]} 21. Rdd1 {[%clk 0:02:03.5]} 21... Nc8 {[%clk 0:01:52.9]} 22. Nc2
{[%clk 0:02:03.6]} 22... Be7 {[%clk 0:01:50.3]} 23. Na3 {[%clk 0:02:03.8]} 23...
Nd6 {[%clk 0:01:47.1]} 24. c4 {[%clk 0:01:56.9]} 24... Nd4 {[%clk 0:01:43.1]}
25. f3 {[%clk 0:01:53.3]} 25... Ne2+ {[%clk 0:01:40.9]} 26. Kf2 {[%clk
0:01:48.8]} 26... Nc3 {[%clk 0:01:40.4]} 27. Rxd6 {[%clk 0:01:43.9]} 27... Bxd6
{[%clk 0:01:20]} 28. Rc1 {[%clk 0:01:42.2]} 28... Nxa2 {[%clk 0:01:19.4]} 29.
Rd1 {[%clk 0:01:40.4]} 29... Be7 {[%clk 0:01:18.8]} 30. Nb5 {[%clk 0:01:40.5]}
30... Nb4 {[%clk 0:01:10.7]} 31. Ke2 {[%clk 0:01:30.9]} 31... Nc2 {[%clk
0:01:08.6]} 32. Bf2 {[%clk 0:01:20.3]} 32... Nd4+ {[%clk 0:01:07.9]} 33. Bxd4
{[%clk 0:01:17.5]} 33... cxd4 {[%clk 0:01:08.1]} 34. Kd3 {[%clk 0:01:17.6]}
34... Bb4 {[%clk 0:01:06.3]} 35. Nc7 {[%clk 0:01:13.7]} 35... Rc8 {[%clk
0:01:04.6]} 36. Nb5 {[%clk 0:01:13.4]} 36... Bd7 {[%clk 0:01:02.5]} 37. Na7
{[%clk 0:00:54.8]} 37... Rc7 {[%clk 0:01:01.1]} 38. Nb5 {[%clk 0:00:55.5]} 38...
Bxb5 {[%clk 0:01:00.8]} 39. cxb5 {[%clk 0:00:56.4]} 39... Rc3+ {[%clk 0:01:01]}
40. Ke2 {[%clk 0:00:56]} 40... Rxb3 {[%clk 0:01:00.2]} 41. Rc1 {[%clk
0:00:56.1]} 41... Bc3 {[%clk 0:00:58.9]} 42. Kd1 {[%clk 0:00:54.4]} 42... Rxb5
{[%clk 0:00:58.7]} 43. Kc2 {[%clk 0:00:54.7]} 43... Rb2+ {[%clk 0:00:58.5]} 44.
Kd3 {[%clk 0:00:55.3]} 44... b5 {[%clk 0:00:58.4]} 45. f4 {[%clk 0:00:54.1]}
45... Rd2# {[%clk 0:00:58.2]} 0-1